Cogmind - Beta 17.1 @@@ ROGUE MODE // 2026.09.12 @ 02:55:28 Player: Sunvar Result: Destroyed by V9-R5D(R) with Subdweller Laser Performance ------------- Evolutions (0) 0 Regions Visited (2) 400 Robots Destroyed (52) 260 Value Destroyed (1098) 1098 Prototype IDs (1) 20 Alien Tech Used (0) 0 Bonus (11030) 11030 TOTAL SCORE: 12808 Bonus ------- Follower Combat Kills 47 Prayed to X0-1V1 5000 Major X0-1V1 Interference 6000 Friendly Fire -17 Cogmind --------- Core Integrity 0/350 Matter 721/1000 Energy 906/1500 System Corruption 0% Temperature Cool (6) Movement Core (50) Location -10/Subcaves Parts ------- > --- POWER (1) -------- (None) > --- PROPULSION (2) --- (None) > --- UTILITY (2) ------ X0-1V1's Piety Tracker > --- WEAPON (2) ------- Assault Rifle > --- INVENTORY (6) ---- Ion Engine Hacking Suite Cobbler Unit Peak State ------------ > --- POWER ------------ Reinforced Ion Engine > --- PROPULSION ------- Light Treads Light Treads > --- UTILITY ---------- Small Storage Unit X0-1V1's Piety Tracker > --- WEAPON ----------- Beam Rifle Spread Laser Grenade Launcher Grenade Launcher > --- INVENTORY -------- Ion Engine Light Treads Hacking Suite Cobbler Unit Beam Rifle Grenade Launcher [Rating: 25] Favorites ----------- Power Ion Engine Engine Ion Engine Propulsion Light Treads Treads Light Treads Leg Aluminum Leg Utility Small Storage Unit Device Seismic Detector Storage Small Storage Unit Weapon Light Assault Rifle Energy Gun Beam Rifle Ballistic Gun Light Assault Rifle Launcher Grenade Launcher Build | -11 -10 -10 ------- Run | Yrd Mat Sub Slots Evolved . | . . . Power . | . . . Propulsion . | . . . Utility . | . . . Weapon . | . . . Parts Attached 17 | . 11 6 Power 1 | . 1 . Engine 1 | . 1 . Core . | . . . Reactor . | . . . Propulsion 3 | . 2 1 Treads 3 | . 2 1 Leg . | . . . Wheel . | . . . Hover . | . . . Flight . | . . . Utility 5 | . 3 2 Device 5 | . 3 2 Storage . | . . . Processor . | . . . Hackware . | . . . Protection . | . . . Artifact . | . . . Weapon 8 | . 5 3 Energy Gun 2 | . 2 . Energy Cannon . | . . . Ballistic Gun 2 | . 1 1 Ballistic Cannon . | . . . Launcher 4 | . 2 2 Special Weapon . | . . . Impact Weapon . | . . . Slashing Weapon . | . . . Piercing Weapon . | . . . Special Melee Weapon . | . . . Unidentified Prototypes 1 | . . 1 Corrupted Parts 2 | . . 2 System Corruption 7 | . . 7 Parts Lost 15 | . 3 12 Power 1 | . . 1 Propulsion 3 | . . 3 Utility 3 | . 1 2 Weapon 8 | . 2 6 Highest Loss Streak 5 | . 1 5 To Critical Strikes . | . . . Average Backups 6 | 6 7 3 Power 1 | 1 1 1 Propulsion 1 | 4 1 . Utility 1 | . 2 1 Weapon 2 | 1 2 . Tool/Special . | . . . Unused Backups 18 | 6 8 4 Power 2 | 1 . 1 Propulsion 6 | 2 4 . Utility 5 | 1 1 3 Weapon 5 | 2 3 . Tool/Special . | . . . Average Slot Usage (%) 83 | . 92 57 Engine 11 | . 13 3 Treads 12 | . 12 11 Leg 10 | . 14 . Device 8 | . 7 10 Storage 12 | . 13 8 Energy Gun 6 | . 2 16 Ballistic Gun 17 | . 23 . Launcher 3 | . 2 5 Peak Build Rating 25 | 6 12 25 Average Rating 11 | 6 8 18 On Entrance 7 | 6 6 11 Avg Prop Armor Cover (%) . | . . . Naked Turns 16 | . . 16 Heaviest Build 28 | 12 22 28 Greatest Support 40 | 20 40 40 Greatest Overweight (x) 3 | . . 3 Average Overweight (x) . | . . . Largest Inventory Capacity 9 | 8 8 9 Average Capacity 8 | 8 8 8 Most Carried 8 | 6 8 7 Average Carried 6 | 6 7 4 Final Capacity 8 | 8 8 6 Final Carried 7 | 6 7 4 Class Distribution -------------------- 92% | Mutant 7% | Gunner Dominant Class ---------------- Mutant | -10/Materials Mutant | -10/Subcaves Resources | -11 -10 -10 ----------- Run | Yrd Mat Sub Matter Collected 820 | 256 510 54 Remotely . | . . . Salvage Created 1426 | 157 925 344 Parts 97 | 12 55 30 Haulers Intercepted 2 | . 2 . Recyclers Shooed . | . . . Parts Field Recycled . | . . . Retrieved Matter . | . . . Parts Self-Destructed 24 | . . 24 Prevented . | . . . Parts Restored . | . . . Kills | -11 -10 -10 ------- Run | Yrd Mat Sub Combat Hostiles Destroyed 34 | . 19 15 Guns 15 | . 11 4 AOE 19 | . 8 11 Classes Destroyed 12 | 2 8 2 Worker 2 | . 2 . Tunneler 7 | 5 2 . Hauler 2 | . 2 . Recycler 2 | 1 1 . Mechanic 1 | . 1 . Operator 3 | . 3 . Watcher 1 | . 1 . Swarmer 12 | . 7 5 Grunt 14 | . 9 5 Sentry 3 | . 3 . Artisan 1 | . . 1 Subdweller 5 | . . 5 Best Kill Streak 6 | 2 6 5 Combat Bots Only 5 | . 4 5 Max Kills in Single Turn 5 | 1 3 5 Gunslinging 1 | . 1 . Exploded 5 | . 3 5 Melee . | . . . Uniques/NPCs Destroyed . | . . . Combat | -11 -10 -10 -------- Run | Yrd Mat Sub Hostile Shots Fired 135 | . 75 60 Missed 42 | . 21 21 Hits 93 | . 54 39 Projectile 93 | . 54 39 AOE 8 | . . 8 Critical Strikes 1 | . 1 . Damage Taken 1861 | . 757 1104 Core 505 | . 145 360 Absorbed by Shields . | . . . Core Remaining (%) 100 | 100 . . Volleys Fired 141 | 28 81 32 Largest 4 | 2 2 4 Hottest 181 | 40 112 181 Shots Fired 279 | 56 159 64 Gun 262 | 56 151 55 Cannon . | . . . Launcher 17 | . 8 9 Special . | . . . Kinetic 200 | 56 138 6 Thermal 62 | . 13 49 Explosive 17 | . 8 9 Electromagnetic . | . . . Robot Hit Streak 16 | 10 16 11 Robot Miss Streak 6 | 3 5 6 Penetration Max . | . . . Secondary Targets 1 | . 1 . Max Gunslinging Chain 1 | . 1 . Shots Hit Robots 179 | 38 101 40 Core Hits 110 | 12 54 44 Critical Kills . | . . . Critical Parts Destroyed 1 | . 1 . Critical Strikes 5 | . 2 3 Burn 4 | . 1 3 Destroy 1 | . 1 . Melee Attacks . | . . . Impact . | . . . Slashing . | . . . Piercing . | . . . Sneak Attacks . | . . . Combat Hostiles . | . . . Follow-up Attacks . | . . . Damage Inflicted 3260 | 297 1792 1171 Guns 1742 | 297 933 512 Cannons . | . . . Explosions 1513 | . 854 659 Melee . | . . . Ramming 5 | . 5 . Kinetic 1154 | 297 818 39 Thermal 588 | . 115 473 Explosive 1513 | . 854 659 Electromagnetic . | . . . Impact . | . . . Slashing . | . . . Piercing . | . . . Highest Corruption 26 | . 9 26 Average Corruption 23 | . 6 24 Corruption Purged . | . . . Corruption Blocked . | . . . Effects 19 | . 1 18 Message Errors 6 | . . 6 Matter Fused 6 | . 1 5 Heat Flow Errors 2 | . . 2 Energy Discharges 3 | . . 3 Data Loss (major) 1 | . . 1 Misdirections 1 | . . 1 Overload Shots . | . . . Overflow Damage 112 | . 85 27 Projectiles . | . . . Explosions 112 | . 85 27 Melee . | . . . Knockbacks . | . . . Impact . | . . . Kinetic . | . . . Secondary . | . . . Self-Inflicted Damage 134 | . 76 58 Shots 4 | . 1 3 Rammed . | . . . Targets Rammed 2 | . 2 . Kicked 2 | . 2 . Crushed . | . . . Highest Temperature 539 | . 539 191 Average Temperature 89 | . 104 56 Received Heat Transfer 372 | . 243 129 Effects 9 | . 9 . Shutdowns 1 | . 1 . Interference 2 | . 2 . Matter Decay 1 | . 1 . Damage (minor) 1 | . 1 . Damage (major) 4 | . 4 . Siege Activations . | . . . Martial Activations . | . . . Shielding Activations . | . . . Robots Disrupted . | . . . Combat Hostiles . | . . . Robots Corrupted . | . . . Combat Hostiles . | . . . Parts Fried . | . . . Impact Corruptions . | . . . Robots Melted . | . . . Combat Hostiles . | . . . Parts Melted 2 | . 2 . Heat Transferred 1423 | . 370 1053 Parts Sabotaged . | . . . Parts Stolen . | . . . Parts Stripped . | . . . Power Chain Reactions . | . . . Alert | -11 -10 -10 ------- Run | Yrd Mat Sub Maximum Alert Level 1 | . 1 . Low Security (%) 94 | 100 93 . Level 1 5 | . 6 . Level 2 . | . . . Level 3 . | . . . Level 4 . | . . . Level 5 . | . . . High Security . | . . . Max Security . | . . . Sterilizations 1 | . 1 . Peak Influence 268 | 10 268 . Initial . | . . . Average 75 | 1 82 . Influence Increases 926 | 30 696 200 Destroy 0b10 Robot/C 680 | . 480 200 Destroy 0b10 Robot/NC 90 | 30 60 . Destroy Leader 66 | . 66 . Allied During Kill 5 | . 5 . Disable Machine 15 | . 15 . Destroy Structure 55 | . 55 . Lose Combat Pursuer 15 | . 15 . Influence Decreases 926 | 30 432 464 Entered New Map 128 | . . 128 Time Decay 657 | 30 411 216 Lost Part 141 | . 21 120 Squads Dispatched 3 | . 3 . Investigation 1 | . 1 . Extermination . | . . . Reinforcement 2 | . 2 . Assault . | . . . Garrison . | . . . Intercept . | . . . Searches Triggered . | . . . Construction Impeded . | . . . Haulers Reinforced . | . . . Active Scanning Responses . | . . . Cargo Convoy Interrupts . | . . . Stealth | -11 -10 -10 --------- Run | Yrd Mat Sub Distress Signals 2 | . 2 . Communications Jammed . | . . . Distress Signals . | . . . Times Spotted 59 | . 35 24 Peak Tracking Total 5 | . 4 5 Tactical Retreats 2 | . 1 1 Traps | -11 -10 -10 ------- Run | Yrd Mat Sub Traps Triggered 5 | . 5 . Indirectly . | . . . Trap Hack Attempts . | . . . Triggered . | . . . Disarmed . | . . . Reprogrammed . | . . . Reused . | . . . Traps Extracted . | . . . Installed . | . . . Triggered . | . . . Machines | -11 -10 -10 ---------- Run | Yrd Mat Sub Machines Disabled 2 | . 2 . Max in Single Turn 1 | . 1 . Machines Repaired . | . . . Machines Dismantled . | . . . Machines Sabotaged . | . . . Overloaded Fab Kills . | . . . Hacking | -11 -10 -10 --------- Run | Yrd Mat Sub Machines Accessed . | . . . Terminals . | . . . Fabricators . | . . . Repair Stations . | . . . Recycling Units . | . . . Scanalyzers . | . . . Garrison Access . | . . . Total Hacks . | . . . Successful . | . . . Failed . | . . . Catastrophic . | . . . Database Lockouts . | . . . Manual 1 | . 1 . Terminals . | . . . Fabricators . | . . . Repair Stations . | . . . Recycling Units . | . . . Scanalyzers . | . . . Garrison Access . | . . . Terminal Hacks . | . . . Fabricator Hacks . | . . . Repair Station Hacks . | . . . Recycling Unit Hacks . | . . . Scanalyzer . | . . . Garrison Access Hacks . | . . . Unauthorized Hacks . | . . . Terminals . | . . . Fabricators . | . . . Repair Stations . | . . . Recycling Units . | . . . Scanalyzers . | . . . Garrison Access . | . . . Data Cores Recovered 1 | . 1 . Used . | . . . Hacking Detections . | . . . Full Trace Events . | . . . Feedback Events . | . . . Feedback Blocked . | . . . Robot Schematics Acquired . | . . . Robots Built . | . . . Authchips . | . . . Time . | . . . Total Robot Build Rating . | . . . Part Schematics Acquired . | . . . Parts Built . | . . . Authchips . | . . . Time . | . . . Total Part Build Rating . | . . . Part Studies Acquired . | . . . Parts Repaired . | . . . Time . | . . . Parts Recycled . | . . . Recycled Matter . | . . . Retrieved Matter . | . . . Retrieved Components . | . . . Parts Scanalyzed . | . . . Part Schematics Acquired . | . . . Parts Damaged . | . . . Bothacking | -11 -10 -10 ------------ Run | Yrd Mat Sub Used RIF Installer . | . . . Robots Hacked . | . . . Non-combat . | . . . Combat . | . . . Robot Hacks Applied . | . . . Relay Couplers Released . | . . . Fabnet Peak Effective % . | . . . Robots Rewired . | . . . Allies Hacked . | . . . Hacks Repelled . | . . . Allies | -11 -10 -10 -------- Run | Yrd Mat Sub Total Allies 1 | . 1 . Largest Group 1 | . 1 . Highest-Rated Group 90 | . 90 . Highest-Rated Ally 90 | . 90 . Total Orders . | . . . Ally Attacks 16 | . 16 . Total Damage 531 | . 531 . Kills 5 | . 5 . Allies Corrupted . | . . . Allies Melted . | . . . X0-1V1 Amusement Gains 58 | . 8 50 Average Entertainment 19 | . 1 38 Good Acts 40 | . 28 12 Bad Acts 38 | . 22 16 Intel | -11 -10 -10 ------- Run | Yrd Mat Sub Active Infowar (turns) 579 | . 579 . Seismic 579 | . 579 . Robot Analysis Total . | . . . Derelict Logs Recovered 1 | . . 1 Drone Launches . | . . . Drone Recoveries . | . . . Exploration | -11 -10 -10 ------------- Run | Yrd Mat Sub Turns Passed 1864 | 127 1262 475 Spaces Moved 1059 | 20 685 354 Core 233 | . . 233 Treads 411 | . 290 121 Legs 415 | 20 395 . Wheels . | . . . Hover . | . . . Flight . | . . . Fastest Speed 50 | 120 120 50 Average Speed 122 | 120 136 95 Slowest Speed 200 | 120 160 200 Overloaded Moves . | . . . Propulsion Burnouts . | . . . Robots Hopped . | . . . Potential Cave-ins 1 | . 1 . Cave-ins Triggered . | . . . Exploration Rate (%) 41 | 4 85 36 Regions Visited 2 Branch Regions 1 Pre-discovered Areas . | . . . Known Exits Taken . | . . . Unknown Exits Taken 2 | 1 1 . Scrap Searched . | . . . Spaces Dug . | . . . Terrain Destroyed 107 | . 57 50 Melee . | . . . Projectile . | . . . AOE 107 | . 57 50 Terrain Rammed . | . . . Walls Destroyed . | . . . Machines Disabled . | . . . Actions | -11 -10 -10 --------- Run | Yrd Mat Sub Total 1387 | 78 875 434 Wait 139 | 31 69 39 Move 1057 | 19 684 354 Hop . | . . . Pick Up 13 | . 12 1 Fast Attach 11 | . 9 2 Attach 9 | . 3 6 Detach . | . . . Swap 3 | . 3 . Drop 12 | . 12 . Fire 141 | 28 81 32 Melee . | . . . Ram . | . . . Kick 2 | . 2 . Crush . | . . . Escape Stasis . | . . . Rewire . | . . . Trap . | . . . Miscellaneous . | . . . Route ------- -11/Scrapyard -10/Materials (discovered 5 exits: [*Mat x3] / [*Min] / [*Sub]) -10/Subcaves (discovered 1 exit: Mat) History --------- Turn | Location | Event 22 | -11/Scrapyard | Discovered new exit (range 3) 128 | -11/Scrapyard | Entered Materials 313 | -10/Materials | Build established: Mutant 320 | -10/Materials | Discovered new exit (range 14) 384 | -10/Materials | Discovered new exit (range 15) 624 | -10/Materials | Discovered new exit (range 10) 686 | -10/Materials | Prayed at D.C.S.S. Altar Unit 795 | -10/Materials | Discovered new exit (range 14) 885 | -10/Materials | Discovered new exit (range 14) 972 | -10/Materials | Core integrity permanently improved by X0-1V1 (+200) 973 | -10/Materials | Core integrity restored by X0-1V1 (+67) 1015 | -10/Materials | X0-1V1 made a cryptic comment about sterilization and BL-4Z3 1026 | -10/Materials | X0-1V1 activates XOMVISION 1027 | -10/Materials | X0-1V1 put everyone to sleep 1033 | -10/Materials | X0-1V1 foreshadows a heat wave 1075 | -10/Materials | X0-1V1 sent hostile S-10 Pest (x4) 1152 | -10/Materials | X0-1V1 caused items to flee you 1160 | -10/Materials | X0-1V1 announced a LAN party 1182 | -10/Materials | X0-1V1 vaporized surrounding terrain (radius 16) 1214 | -10/Materials | Sterilization system engaged 1214 | -10/Materials | Non-combat units ordered to evacuate 1214 | -10/Materials | X0-1V1 sent allied H-61 Shepherd (x1) 1242 | -10/Materials | X0-1V1 sent you into danger 1278 | -10/Materials | Ambient heat levels rising (+10) 1314 | -10/Materials | Combat units ordered to evacuate 1319 | -10/Materials | X0-1V1 sent you into danger 1333 | -10/Materials | X0-1V1 activates XOMVISION 1375 | -10/Materials | Weapon slot count temporarily expanded by X0-1V1 (+2) 1390 | -10/Materials | Entered Subcaves 1391 | -10/Subcaves | Approached by a straggling Scientist 1399 | -10/Subcaves | Identified exit to Materials 1399 | -10/Subcaves | X0-1V1 revealed exit location to -8/Materials 1416 | -10/Subcaves | Inventory capacity permanently improved by X0-1V1 (+1; -100 max core) 1434 | -10/Subcaves | A swath of the cavern ceiling suddenly collapsed 1451 | -10/Subcaves | X0-1V1 caused items to flee you 1463 | -10/Subcaves | X0-1V1 tapped a No Entrance sign 1463 | -10/Subcaves | X0-1V1 sent hostile S-10 Pest (x5) 1482 | -10/Subcaves | System corruption reached 10% 1526 | -10/Subcaves | X0-1V1 sent you into danger 1543 | -10/Subcaves | X0-1V1 sent hostile G-34 Mercenary (x5) 1590 | -10/Subcaves | Lost 5 parts (1p4w) 1717 | -10/Subcaves | Items stopped fleeing you 1717 | -10/Subcaves | A Subdweller sparked back to life 1717 | -10/Subcaves | A Subdweller sparked back to life 1755 | -10/Subcaves | Core integrity fell below 50% 1761 | -10/Subcaves | X0-1V1 whisked you away to safety 1764 | -10/Subcaves | Lost 4 parts (2u2w) 1771 | -10/Subcaves | Weapon slot count reverted to normal (-2) 1787 | -10/Subcaves | Core integrity fell below 20% 1809 | -10/Subcaves | Learned Materials emergency access door positions 1817 | -10/Subcaves | A swath of the cavern ceiling suddenly collapsed 1865 | -10/Subcaves | Destroyed by V9-R5D(R) with Subdweller Laser Last Messages --------------- 01800_ Acquired 8 matter. 01806_ Acquired 11 matter. 01807_ Acquired 16 matter. 01807_ X0-1V1 blesses 1 of your inventory parts (corruption cleared). 01809_ Acquired derelict log, extracted data. Data stored: Materials emergency access points. 01809_ X0-1V1 points here and there (1 item location revealed). 01814_ ZC00R625QUMND6W8T|D/F9Y7G 01817_ Ion Engine crushed. A swath of the cavern ceiling suddenly collapses. 01828_ X0-1V1: "Watch where you're going!" (+4 sight range) 01830_ X0-1V1 lends a hand with your twisted circuits (-26 system corruption). 01835_ Acquired Unknown Ballistic Gun. 01835_ Identified Assault Rifle. 01837_ Subatomizers dissect the Sub. Monowheel. 01854_ X0-1V1 twists the quantum threads just so. 01854_ JL-XUW(R) sundered. 01854_ JL-XUW(R) destroyed. 01865_ X0-1V1 giggles madly! Map ----- +----------------------------------------------------+ | ??????????????????????????????????????????### | | ?????????????????????????????????????????## | | ????????????????????????????????????###### | | ????????????????????????????????????# ## ### | | ??????????????????????????????####### #?# | | ?????????????????????????????## #?? | | ?????????????????????????????# ##?? | | ?????????????????????????????## ### ##??? | | ??????????????????????????????# ##?# ##???? | | ??????????????????????????????###??# ##????? | | ???????????????????????????????????##### ###?????? | | ???????????????????????????????????????###???????? | | ?????????????????????????????????????????????????? | | ?????????????????????????????????????????????????? | | ?????????????????????????????????????????????????? | | ?????????????????????????????????????????????????? | | ?????????????????????????????????????????????????? | | ??##?????????????????????????????????????????????? | | ## ##???????????#????????????????????????????????? | | ##?????????? ######??????????????????????????? | | #?????????? #??????????????????????????? | | ????######### ???????????????????????????? | | #?# ## # #???####?????????????????????? | | ##?# ##?### #?????????????????????? | | #?# % #?# ##????????????????????? | | #??#% ### ####?# @ #????????????????????? | | #?# #??### #???## ##???????????????????? | | ### ##?### ###### ## ##???????????????????? | | ## ## #?#"# ###= ;#########????????????? | | #### #????# #!% ;""# #???????????? | | # #??### !=[ [ R ##"### #??????????? | | #???#" %* ! ## #"#"# #?????????? | | ##### ##! ##### ##### *?????????? | | ## % ##% #####???###??????? ##??????????? | | ## ##????????????????????#???????????? | | ?# #????????????????????????????????? | | ## % #???????????????????????????????? | | % ## %= #??????????????????????????????? | | #?????????????????????????????? | | % %% ????????????????????????????? | | % ###### #???????????????????????????? | | ##############?????###???????????????????????????? | | ?????????????????????????????????????????????????? | | ?????????????????????????????????????????????????? | | ?????????????????????????????????????????????????? | | ?????????????????????????????????????????????????? | | ?????????????????????????????????????????????????? | | ?????????????????????????????????????????????????? | | ?????????????????????????????????????????????????? | | ?????????????????????????????????????????????????? | +----------------------------------------------------+ Best States ------------- Heat Dissipation 35 Energy Generation 23 Energy Capacity 1665 Matter Stores 1000 Matter Capacity 1000 Sight Range 20 Terrain Scan Density 10 Evasion (%) 55 Recoil Reduction 2 Item Schematics ----------------- None Robot Schematics ------------------ None Fabricated ------------ Nothing Repaired ---------- Nothing Studied --------- None Alien Tech Used ----------------- None Achievements -------------- None Challenges ------------ None Game ------ Seed LauncherShiftRailcannon Manual? 0 Play Time 00:16:25 Cumulative 259.4 hours Start 2026.09.12 @ 02:39:51 End 2026.09.12 @ 02:55:28 Sessions 1 Manual Loads 0 Difficulty Rogue Special Mode None Game No. 167 Rogue 167 Adventurer 0 Explorer 0 Win Type - Total 24 Types 11/0/4/9/0/0/0/0/0/0 Lore% 72 Gallery% 61 Achievement% 47 Wizard Run 0 Options --------- Layout 0 ASCII 0 Keyboard 1 Movement Numpad Keybinds 0 Fullscreen 1 Font 36/Proggy Map View 76x50 Zoom Use 0% Tactical HUD 1 Map Filters NONE Filters NONE Steam 1 RUN: abfc40bf-5fe2-458e-88f9-75a063fcd82a